[Event "POL-chT 2 Liga 2019"]
[Site "Poronin"]
[Date "2019.09.11"]
[Round "5.44"]
[White "Okrucinski, Tadeusz"]
[Black "Watorek, Marcin"]
[Result "1-0"]
[ECO "D43"]
[WhiteElo "2164"]
[BlackElo "2091"]
[Annotator "NA"]
[PlyCount "51"]
[EventDate "2019.09.07"]
[EventType "team-tourn"]
[EventCountry "POL"]
[SourceTitle "playchess.com"]
[Source "ChessBase"]
[SourceQuality "1"]
[TimeControl "40/5400+30:1800+30"]

1. d4 {[%emt 0:00:00]} d5 {[%emt 0:00:00]} 2. c4 {[%emt 0:00:00]} c6 {[%emt 0:00:00]} 3. Nc3 {[%emt 0:00:00]} Nf6 {[%emt 0:00:00]} 4. Nf3 {[%emt 0:00:00]} e6 {[%emt 0:00:29]} 5. g3 {[%emt 0:00:01]} dxc4 {[%emt 0:00:53]} 6. Bg2 {[%emt 0:00:39]} b5 {[%emt 0:01:24]} 7. O-O {[%emt 0:00:20]} Bb7 {[%emt 0:02:02]} 8. Bg5 {[%emt 0:01:57]} Nbd7 {[%emt 0:05:10]} 9. a4 {[%emt 0:03:57]} Qb6 {[%emt 0:04:33]} 10. a5 {[%emt 0:07:42]} Qa6 {[%emt 0:00:43]} 11. Bxf6 {[%emt 0:14:27]} Nxf6 {[%emt 0:03:37]} 12. Ne5 {[%emt 0:00:31]} Rd8 {[%emt 0:01:21]} 13. e3 {[%emt 0:10:37]} c5 {[%emt 0:10:30]} 14. Bxb7 {[%emt 0:01:06]} Qxb7 {[%emt 0:00:04]} 15. a6 {[%emt 0:00:06]} Qb6 {[%emt 0:01:07]} 16. Qf3 {[%emt 0:00:59]} cxd4 {[%emt 0:21:35]} 17. exd4 {[%emt 0:03:48]} Bb4 {[%emt 0:08:19]} 18. Qb7 {[%emt 0:13:19]} Nd7 {[%emt 0:15:35]} 19. Nc6 {[%emt 0:06:34]} Bxc3 {[%emt 0:01:16]} 20. bxc3 {[%emt 0:00:06]} O-O {[%emt 0:06:41]} 21. Nxd8 {[%emt 0:00:23]} Rxd8 {[%emt 0:00:14]} 22. Rfb1 {[%emt 0:00:24]} Qd6 {[%emt 0:04:02]} 23. Rxb5 {[%emt 0:02:58]} Rb8 {[%emt 0:00:43]} 24. Qxd7 {[%emt 0:00:31]} Qxd7 {[%emt 0:00:03]} 25. Rxb8+ {[%emt 0:00:09]} Qc8 {[%emt 0:00:01]} 26. Rxc8# {[%emt 0:01:17]} 1-0

[Event "POL-chT 2 Liga 2019"]
[Site "Poronin"]
[Date "2019.09.11"]
[Round "5.46"]
[White "Kubica, Kamil"]
[Black "Lach, Piotr"]
[Result "1/2-1/2"]
[ECO "A46"]
[WhiteElo "2099"]
[BlackElo "2125"]
[Annotator "NA"]
[PlyCount "23"]
[EventDate "2019.09.07"]
[EventType "team-tourn"]
[EventCountry "POL"]
[SourceTitle "playchess.com"]
[Source "ChessBase"]
[SourceQuality "1"]
[TimeControl "40/5400+30:1800+30"]

1. d4 {[%emt 0:00:00]} Nf6 {[%emt 0:00:00]} 2. Nf3 {[%emt 0:00:13]} e6 {[%emt 0:00:01]} 3. g3 {[%emt 0:00:40]} b5 {[%emt 0:02:20]} 4. Bg2 {[%emt 0:00:55]} Bb7 {[%emt 0:00:08]} 5. O-O {[%emt 0:02:26]} Be7 {[%emt 0:00:43]} 6. Re1 {[%emt 0:03:10]} d5 {[%emt 0:04:40]} 7. c3 {[%emt 0:07:00]} Nbd7 {[%emt 0:02:11]} 8. Qb3 {[%emt 0:02:30]} a6 {[%emt 0:01:13]} 9. a4 {[%emt 0:00:33]} c5 {[%emt 0:08:46]} 10. axb5 {[%emt 0:18:46]} c4 {[%emt 0:00:27]} 11. Qc2 {[%emt 0:00:25]} axb5 {[%emt 0:00:18]} 12. Rxa8 {[%emt 0:04:40]} 1/2-1/2

[Event "POL-chT 2 Liga 2019"]
[Site "Poronin"]
[Date "2019.09.11"]
[Round "5.47"]
[White "Rzeznik, Lukasz"]
[Black "Rawski, Slawomir"]
[Result "1-0"]
[ECO "B32"]
[WhiteElo "1988"]
[BlackElo "2056"]
[Annotator "NA"]
[PlyCount "63"]
[EventDate "2019.09.07"]
[EventType "team-tourn"]
[EventCountry "POL"]
[SourceTitle "playchess.com"]
[Source "ChessBase"]
[SourceQuality "1"]
[TimeControl "40/5400+30:1800+30"]

1. e4 {[%emt 0:00:00]} c5 {[%emt 0:00:13]} 2. Nf3 Nc6 {[%emt 0:00:32]} 3. d4 {[%emt 0:00:11]} cxd4 {[%emt 0:00:12]} 4. Nxd4 {[%emt 0:00:07]} d6 {[%emt 0:00:19]} 5. Nc3 {[%emt 0:01:56]} Bd7 {[%emt 0:00:10]} 6. Be3 {[%emt 0:03:06]} Nf6 {[%emt 0:00:28]} 7. f3 {[%emt 0:01:51]} a6 {[%emt 0:07:22]} 8. a4 {[%emt 0:02:51]} e6 {[%emt 0:06:28]} 9. Qd2 {[%emt 0:02:31]} Be7 {[%emt 0:01:11]} 10. Nb3 {[%emt 0:15:31]} O-O {[%emt 0:11:44]} 11. a5 {[%emt 0:04:38]} Ne5 {[%emt 0:02:18]} 12. f4 {[%emt 0:18:09]} Ng6 {[%emt 0:01:19]} 13. Be2 {[%emt 0:04:09]} Bc6 {[%emt 0:02:44]} 14. Bf3 {[%emt 0:01:42]} Nh4 {[%emt 0:00:18]} 15. Nd4 {[%emt 0:11:37]} Nxf3+ {[%emt 0:02:31]} 16. gxf3 {[%emt 0:00:08]} Bd7 {[%emt 0:01:06]} 17. Rg1 {[%emt 0:08:20]} Rc8 {[%emt 0:04:32]} 18. f5 {[%emt 0:04:24]} exf5 {[%emt 0:04:17]} 19. Bh6 {[%emt 0:04:19]} Nh5 {[%emt 0:00:42]} 20. O-O-O {[%emt 0:07:19]} Kh8 {[%emt 0:06:21]} 21. Nd5 {[%emt 0:02:24]} Rg8 {[%emt 0:00:57]} 22. Nxe7 {[%emt 0:02:50]} Qxe7 {[%emt 0:00:10]} 23. Bg5 {[%emt 0:00:21]} f6 {[%emt 0:00:25]} 24. Bf4 {[%emt 0:00:54]} fxe4 {[%emt 0:00:48]} 25. fxe4 {[%emt 0:00:53]} Nxf4 {[%emt 0:00:32]} 26. Qxf4 {[%emt 0:00:07]} Qe5 {[%emt 0:00:12]} 27. Qh4 {[%emt 0:01:07]} Qxa5 {[%emt 0:01:03]} 28. Nb3 {[%emt 0:00:56]} Qa2 {[%emt 0:12:15]} 29. Rd3 {[%emt 0:01:09]} Be6 {[%emt 0:01:28]} 30. Rg2 {[%emt 0:00:56]} Bxb3 {[%emt 0:00:23]} 31. Qxh7+ {[%emt 0:00:07]} Kxh7 {[%emt 0:00:15]} 32. Rh3# {[%emt 0:00:01] Be6} 1-0

[Event "POL-chT 2 Liga 2019"]
[Site "Poronin"]
[Date "2019.09.11"]
[Round "5.50"]
[White "Suliborski, Jakub"]
[Black "Grela, Kacper"]
[Result "0-1"]
[ECO "B56"]
[WhiteElo "2169"]
[BlackElo "2346"]
[Annotator "NA"]
[PlyCount "96"]
[EventDate "2019.09.07"]
[EventType "team-tourn"]
[EventCountry "POL"]
[SourceTitle "playchess.com"]
[Source "ChessBase"]
[SourceQuality "1"]
[TimeControl "40/5400+30:1800+30"]

1. e4 {[%emt 0:00:00]} c5 {[%emt 0:00:00]} 2. Nf3 {[%emt 0:00:00]} Nc6 {[%emt 0:00:00]} 3. d4 {[%emt 0:00:00]} cxd4 {[%emt 0:00:00]} 4. Nxd4 {[%emt 0:00:00]} Nf6 {[%emt 0:00:00]} 5. Nc3 {[%emt 0:00:05]} d6 {[%emt 0:00:07]} 6. h3 {[%emt 0:01:30]} e5 {[%emt 0:01:02]} 7. Nde2 {[%emt 0:00:10]} Be6 {[%emt 0:01:31]} 8. Bg5 {[%emt 0:00:08]} Be7 {[%emt 0:00:15]} 9. Bxf6 {[%emt 0:00:12]} Bxf6 {[%emt 0:00:09]} 10. Nd5 {[%emt 0:00:08]} O-O {[%emt 0:05:00]} 11. Nec3 {[%emt 0:01:10]} Bg5 {[%emt 0:07:26]} 12. Bd3 {[%emt 0:12:33]} Rc8 {[%emt 0:03:21]} 13. O-O {[%emt 0:05:12]} Ne7 {[%emt 0:04:03]} 14. Qf3 {[%emt 0:13:02]} Nxd5 {[%emt 0:07:56]} 15. Nxd5 {[%emt 0:05:57]} Bxd5 {[%emt 0:01:21]} 16. exd5 {[%emt 0:00:04]} g6 {[%emt 0:01:29]} 17. c3 {[%emt 0:03:40]} f5 {[%emt 0:06:49]} 18. Qd1 {[%emt 0:00:14]} e4 {[%emt 0:08:15]} 19. Be2 {[%emt 0:00:28]} Bf4 {[%emt 0:05:04]} 20. Qd4 {[%emt 0:04:36]} Qg5 {[%emt 0:04:20]} 21. Bb5 {[%emt 0:06:27]} Rc7 {[%emt 0:05:21]} 22. Rae1 {[%emt 0:04:32]} Re7 {[%emt 0:02:20]} 23. Kh1 {[%emt 0:05:50]} a6 {[%emt 0:00:57]} 24. Ba4 {[%emt 0:00:37]} e3 {[%emt 0:01:32]} 25. Bd1 {[%emt 0:05:18]} Re4 {[%emt 0:02:16]} 26. Qb6 {[%emt 0:03:57]} Rfe8 {[%emt 0:02:59]} 27. Re2 {[%emt 0:03:04]} Qh4 {[%emt 0:07:46]} 28. Bc2 {[%emt 0:08:21]} R4e7 {[%emt 0:01:19]} 29. Qd4 {[%emt 0:07:54]} Qg5 {[%emt 0:02:24]} 30. Bd3 {[%emt 0:03:48]} exf2 {[%emt 0:02:12]} 31. Rxe7 {[%emt 0:01:25]} Rxe7 {[%emt 0:00:04]} 32. Qxf2 {[%emt 0:00:04]} Bg3 {[%emt 0:00:20]} 33. Qf3 {[%emt 0:02:41]} Re3 {[%emt 0:00:47]} 34. Qd1 {[%emt 0:00:04]} Be5 {[%emt 0:01:20]} 35. Rf3 {[%emt 0:01:58]} Rxf3 {[%emt 0:00:21]} 36. gxf3 {[%emt 0:00:19]} Qg3 {[%emt 0:00:38]} 37. Qe2 {[%emt 0:00:02]} Qxh3+ {[%emt 0:00:13]} 38. Kg1 {[%emt 0:00:03]} Qh6 {[%emt 0:01:58]} 39. a4 {[%emt 0:01:04]} Qc1+ {[%emt 0:00:41]} 40. Kg2 {[%emt 0:00:00]} h5 {[%emt 0:00:00]} 41. Qf2 {[%emt 0:02:41]} Qf4 {[%emt 0:03:47]} 42. a5 {[%emt 0:03:12]} h4 {[%emt 0:01:00]} 43. b4 {[%emt 0:01:19]} Bxc3 {[%emt 0:01:38]} 44. b5 {[%emt 0:00:06]} axb5 {[%emt 0:02:14]} 45. Bxb5 {[%emt 0:00:04]} Bxa5 {[%emt 0:01:35]} 46. Qe2 {[%emt 0:01:43]} Bc3 {[%emt 0:00:37]} 47. Be8 {[%emt 0:01:02]} Kh7 {[%emt 0:02:32]} 48. Qe7+ {[%emt 0:02:56]} Bg7 {[%emt 0:00:07]} 0-1

[Event "POL-chT 2 Liga 2019"]
[Site "Poronin"]
[Date "2019.09.11"]
[Round "5.51"]
[White "Komendecki, Jacek"]
[Black "Parol, Pawel"]
[Result "1-0"]
[ECO "C00"]
[WhiteElo "2073"]
[BlackElo "2145"]
[Annotator "NA"]
[PlyCount "55"]
[EventDate "2019.09.07"]
[EventType "team-tourn"]
[EventCountry "POL"]
[SourceTitle "playchess.com"]
[Source "ChessBase"]
[SourceQuality "1"]
[TimeControl "40/5400+30:1800+30"]

1. e4 {[%emt 0:00:00]} e6 {[%emt 0:00:00]} 2. d4 {[%emt 0:00:00]} d5 {[%emt 0:00:00]} 3. Bd3 {[%emt 0:00:00]} Nf6 {[%emt 0:02:06]} 4. e5 {[%emt 0:00:00]} Nfd7 {[%emt 0:00:28]} 5. f4 {[%emt 0:00:06]} c5 {[%emt 0:03:04]} 6. c3 {[%emt 0:00:09]} Nc6 {[%emt 0:04:51]} 7. Nf3 {[%emt 0:00:13]} Qb6 {[%emt 0:07:03]} 8. Bc2 {[%emt 0:00:50]} Be7 {[%emt 0:12:40]} 9. O-O {[%emt 0:06:51]} g6 {[%emt 0:13:38]} 10. Kh1 {[%emt 0:01:46]} h5 {[%emt 0:12:57]} 11. dxc5 {[%emt 0:12:39]} Nxc5 {[%emt 0:03:55]} 12. b4 {[%emt 0:01:52]} Nd7 {[%emt 0:03:36]} 13. Qe2 {[%emt 0:00:59]} a5 {[%emt 0:15:38]} 14. Be3 {[%emt 0:01:22]} Qc7 {[%emt 0:01:02]} 15. b5 {[%emt 0:07:33]} Na7 {[%emt 0:01:06]} 16. Nd4 {[%emt 0:30:06]} Nc5 {[%emt 0:02:38]} 17. Nd2 {[%emt 0:03:06]} b6 {[%emt 0:00:24]} 18. Rac1 {[%emt 0:10:06]} Bb7 {[%emt 0:00:39]} 19. c4 {[%emt 0:02:12]} Rd8 {[%emt 0:02:36]} 20. Bb1 {[%emt 0:03:05]} Qd7 {[%emt 0:06:48]} 21. Rfd1 O-O {[%emt 0:02:01]} 22. f5 {[%emt 0:12:29]} exf5 {[%emt 0:00:03]} 23. Bh6 {[%emt 0:00:17]} Ne6 {[%emt 0:03:44]} 24. Nxf5 {[%emt 0:04:09]} gxf5 {[%emt 0:00:21]} 25. Qxh5 {[%emt 0:00:36]} Nd4 {[%emt 0:00:41]} 26. Rc3 {[%emt 0:00:33]} Qe6 {[%emt 0:00:29]} 27. Rg3+ {[%emt 0:00:21]} Bg5 {[%emt 0:00:31]} 28. Rxg5+ {[%emt 0:00:10]} 1-0

[Event "POL-chT 2 Liga 2019"]
[Site "Poronin"]
[Date "2019.09.11"]
[Round "5.52"]
[White "Kowalec, Maciej"]
[Black "Kowalak, Piotr"]
[Result "1/2-1/2"]
[ECO "A45"]
[WhiteElo "2054"]
[BlackElo "2108"]
[Annotator "NA"]
[PlyCount "43"]
[EventDate "2019.09.07"]
[EventType "team-tourn"]
[EventCountry "POL"]
[SourceTitle "playchess.com"]
[Source "ChessBase"]
[SourceQuality "1"]
[TimeControl "40/5400+30:1800+30"]

1. d4 {[%emt 0:00:00]} Nf6 {[%emt 0:00:00]} 2. Bg5 {[%emt 0:00:08]} d5 {[%emt 0:01:09]} 3. Nd2 {[%emt 0:01:00]} Nbd7 {[%emt 0:06:01]} 4. e3 {[%emt 0:02:53]} e6 {[%emt 0:05:29]} 5. Bd3 {[%emt 0:00:34]} Be7 {[%emt 0:02:01]} 6. c3 {[%emt 0:01:05]} e5 {[%emt 0:05:40]} 7. Rc1 {[%emt 0:07:12]} O-O {[%emt 0:02:44]} 8. Bb1 {[%emt 0:06:56]} c5 {[%emt 0:17:07]} 9. dxe5 {[%emt 0:02:37]} Nxe5 {[%emt 0:02:42]} 10. Ngf3 {[%emt 0:01:08]} Nxf3+ {[%emt 0:22:54]} 11. Nxf3 {[%emt 0:02:50]} Be6 {[%emt 0:00:36]} 12. Bxf6 {[%emt 0:02:36]} Bxf6 {[%emt 0:00:15]} 13. O-O {[%emt 0:00:50]} g6 {[%emt 0:00:33]} 14. b4 {[%emt 0:07:17]} b6 {[%emt 0:02:18]} 15. Qa4 {[%emt 0:05:52]} Qc7 {[%emt 0:01:09]} 16. Bd3 {[%emt 0:02:40]} Rfd8 {[%emt 0:03:42]} 17. h3 {[%emt 0:04:58]} Rac8 {[%emt 0:04:43]} 18. Ba6 {[%emt 0:02:22]} Rb8 {[%emt 0:01:35]} 19. Bb5 {[%emt 0:01:00]} Rbc8 {[%emt 0:02:00]} 20. Ba6 {[%emt 0:03:15]} Rb8 {[%emt 0:00:20]} 21. Bb5 {[%emt 0:01:47]} Rbc8 {[%emt 0:00:38]} 22. Ba6 {[%emt 0:03:03]} 1/2-1/2

[Event "POL-chT 2 Liga 2019"]
[Site "Poronin"]
[Date "2019.09.11"]
[Round "5.53"]
[White "Krawiec, Grzegorz"]
[Black "Parol, Pola"]
[Result "0-1"]
[ECO "B91"]
[WhiteElo "1792"]
[BlackElo "2062"]
[Annotator "NA"]
[PlyCount "88"]
[EventDate "2019.09.07"]
[EventType "team-tourn"]
[EventCountry "POL"]
[SourceTitle "playchess.com"]
[Source "ChessBase"]
[SourceQuality "1"]
[TimeControl "40/5400+30:1800+30"]

1. e4 {[%emt 0:00:00]} c5 {[%emt 0:00:00]} 2. Nf3 {[%emt 0:00:00]} d6 {[%emt 0:00:00]} 3. d4 {[%emt 0:00:00]} cxd4 {[%emt 0:00:02]} 4. Nxd4 {[%emt 0:00:00]} Nf6 {[%emt 0:00:07]} 5. Nc3 {[%emt 0:00:00]} a6 {[%emt 0:00:06]} 6. g3 {[%emt 0:00:47]} e5 {[%emt 0:01:22]} 7. Nb3 {[%emt 0:00:59]} Be7 {[%emt 0:01:33]} 8. Bg2 {[%emt 0:00:26]} O-O {[%emt 0:01:54]} 9. O-O {[%emt 0:00:34]} b5 {[%emt 0:02:35]} 10. a4 {[%emt 0:02:49]} b4 {[%emt 0:05:07]} 11. Nd5 {[%emt 0:02:01]} a5 {[%emt 0:09:01]} 12. Re1 Bb7 {[%emt 0:07:34]} 13. c4 {[%emt 0:14:31]} bxc3 {[%emt 0:02:05]} 14. Nxc3 {[%emt 0:00:28]} Na6 {[%emt 0:03:56]} 15. Be3 {[%emt 0:02:40]} Nb4 {[%emt 0:01:51]} 16. Rc1 {[%emt 0:07:12]} Qd7 {[%emt 0:06:48]} 17. Bb6 {[%emt 0:05:27]} Bd8 {[%emt 0:02:23]} 18. Be3 {[%emt 0:16:10]} Bc6 {[%emt 0:02:47]} 19. Na1 {[%emt 0:02:09]} Rb8 {[%emt 0:05:00]} 20. b3 {[%emt 0:04:39]} Bb6 {[%emt 0:02:07]} 21. Nc2 {[%emt 0:01:34]} Nxc2 {[%emt 0:09:32]} 22. Qxc2 {[%emt 0:01:42]} Bxe3 {[%emt 0:00:22]} 23. Rxe3 {[%emt 0:00:15]} Rfc8 {[%emt 0:01:40]} 24. Qd1 {[%emt 0:04:54]} Qe6 {[%emt 0:02:04]} 25. Nd5 {[%emt 0:07:35]} Bxd5 {[%emt 0:05:37]} 26. Rxc8+ {[%emt 0:00:06]} Qxc8 {[%emt 0:01:39]} 27. exd5 {[%emt 0:00:05]} Qc5 {[%emt 0:01:41]} 28. Qd2 {[%emt 0:04:00]} Rc8 {[%emt 0:01:06]} 29. Bf1 {[%emt 0:07:33]} h6 {[%emt 0:06:07]} 30. Bc4 {[%emt 0:06:12]} Nd7 {[%emt 0:01:21]} 31. Kg2 {[%emt 0:00:48]} Nb6 {[%emt 0:04:12]} 32. Rc3 {[%emt 0:00:11]} Qb4 {[%emt 0:01:43]} 33. Qd3 {[%emt 0:02:22]} Rc5 {[%emt 0:04:56]} 34. Rc2 {[%emt 0:00:28]} Qa3 {[%emt 0:01:00]} 35. h4 {[%emt 0:03:23]} Qa1 {[%emt 0:01:00]} 36. h5 {[%emt 0:03:48]} Qb1 {[%emt 0:00:17]} 37. Qf5 {[%emt 0:02:02]} Nxc4 {[%emt 0:00:59]} 38. bxc4 {[%emt 0:00:32]} Rxc4 {[%emt 0:00:18]} 39. Qd7 {[%emt 0:00:32]} Qxc2 {[%emt 0:00:31]} 40. Qe8+ {[%emt 0:00:00]} Kh7 {[%emt 0:00:00]} 41. Qxf7 {[%emt 0:00:20]} Qe4+ {[%emt 0:00:54]} 42. f3 {[%emt 0:00:41]} Qe2+ {[%emt 0:00:33]} 43. Kh3 {[%emt 0:00:19]} Qf1+ {[%emt 0:00:06]} 44. Kh2 {[%emt 0:00:01]} Rc2# {[%emt 0:00:07]} 0-1

[Event "POL-chT 2 Liga 2019"]
[Site "Poronin"]
[Date "2019.09.11"]
[Round "5.54"]
[White "Rykala, Monika"]
[Black "Karykowska, Anna"]
[Result "0-1"]
[ECO "E30"]
[WhiteElo "1892"]
[BlackElo "1895"]
[Annotator "NA"]
[PlyCount "64"]
[EventDate "2019.09.07"]
[EventType "team-tourn"]
[EventCountry "POL"]
[SourceTitle "playchess.com"]
[Source "ChessBase"]
[SourceQuality "1"]
[TimeControl "40/5400+30:1800+30"]

1. d4 {[%emt 0:00:00]} Nf6 {[%emt 0:00:00]} 2. c4 {[%emt 0:00:00]} e6 {[%emt 0:00:00]} 3. Nc3 {[%emt 0:00:00]} Bb4 {[%emt 0:00:27]} 4. Bg5 {[%emt 0:00:22]} d5 {[%emt 0:10:55]} 5. e3 {[%emt 0:03:26]} O-O {[%emt 0:02:09]} 6. Qc2 {[%emt 0:05:35]} Nbd7 {[%emt 0:03:28]} 7. cxd5 {[%emt 0:03:24]} exd5 {[%emt 0:00:40]} 8. Bd3 {[%emt 0:03:01]} h6 {[%emt 0:01:39]} 9. Bh4 {[%emt 0:00:12]} c5 {[%emt 0:03:18]} 10. Nge2 {[%emt 0:07:16]} c4 {[%emt 0:03:58]} 11. Bf5 {[%emt 0:00:06]} Nb6 {[%emt 0:00:37]} 12. O-O {[%emt 0:01:16]} Be7 {[%emt 0:05:10]} 13. h3 {[%emt 0:05:41]} Bxf5 {[%emt 0:04:36]} 14. Qxf5 {[%emt 0:01:22]} Qd7 {[%emt 0:00:54]} 15. Qxd7 {[%emt 0:00:38]} Nbxd7 {[%emt 0:00:11]} 16. Bxf6 {[%emt 0:05:59]} Nxf6 {[%emt 0:00:18]} 17. a4 {[%emt 0:07:13]} a6 {[%emt 0:04:05]} 18. a5 {[%emt 0:00:54]} Rac8 {[%emt 0:02:34]} 19. Rfb1 {[%emt 0:03:14]} Bb4 {[%emt 0:08:26]} 20. Ra4 {[%emt 0:00:44]} Bd6 {[%emt 0:02:14]} 21. Ra2 {[%emt 0:03:27]} Rc6 {[%emt 0:04:23]} 22. b4 {[%emt 0:05:58]} b5 {[%emt 0:06:18]} 23. axb6 {[%emt 0:12:12]} Rxb6 {[%emt 0:00:07]} 24. b5 {[%emt 0:00:54]} axb5 {[%emt 0:03:33]} 25. Rxb5 {[%emt 0:00:47]} Rfb8 {[%emt 0:04:56]} 26. Rxb6 {[%emt 0:01:07]} Rxb6 {[%emt 0:00:07]} 27. f3 {[%emt 0:00:50]} Rb3 {[%emt 0:03:23]} 28. Kf2 {[%emt 0:03:38]} Bb4 {[%emt 0:01:17]} 29. Rc2 {[%emt 0:01:17]} Kf8 {[%emt 0:01:37]} 30. e4 {[%emt 0:03:54]} dxe4 {[%emt 0:04:20]} 31. fxe4 {[%emt 0:00:07]} Bxc3 {[%emt 0:00:15]} 32. Nxc3 {[%emt 0:00:02]} Rxc3 {[%emt 0:00:18]} 0-1

[Event "POL-chT 2 Liga 2019"]
[Site "Poronin"]
[Date "2019.09.12"]
[Round "6.1"]
[White "Lewicki, Miroslaw"]
[Black "Bator, Robert"]
[Result "1/2-1/2"]
[ECO "B31"]
[WhiteElo "2351"]
[BlackElo "2358"]
[Annotator "NA"]
[PlyCount "40"]
[EventDate "2019.09.07"]
[EventType "team-tourn"]
[EventCountry "POL"]
[SourceTitle "playchess.com"]
[Source "ChessBase"]
[SourceQuality "1"]
[TimeControl "40/5400+30:1800+30"]

1. e4 {[%emt 0:00:00]} c5 {[%emt 0:02:34]} 2. Nf3 {[%emt 0:00:00]} Nc6 {[%emt 0:00:12]} 3. Bb5 {[%emt 0:00:33]} g6 {[%emt 0:02:04]} 4. O-O {[%emt 0:00:11]} Bg7 {[%emt 0:00:04]} 5. c3 {[%emt 0:00:54]} Nf6 {[%emt 0:02:51]} 6. Qe2 {[%emt 0:01:42]} O-O {[%emt 0:00:56]} 7. d3 {[%emt 0:00:49]} Qb6 {[%emt 0:05:48]} 8. Ba4 {[%emt 0:01:45]} Qa6 {[%emt 0:04:22]} 9. Bb3 {[%emt 0:03:56]} d6 {[%emt 0:04:24]} 10. h3 {[%emt 0:02:27]} e5 {[%emt 0:06:29]} 11. a4 {[%emt 0:04:20]} Be6 {[%emt 0:06:35]} 12. Bc4 {[%emt 0:04:29]} Bxc4 {[%emt 0:02:32]} 13. dxc4 {[%emt 0:00:06]} d5 {[%emt 0:00:11]} 14. exd5 {[%emt 0:02:33]} Nxd5 {[%emt 0:00:15]} 15. Na3 {[%emt 0:02:15]} Nde7 {[%emt 0:08:15]} 16. Be3 {[%emt 0:05:46]} b6 {[%emt 0:01:06]} 17. Qc2 {[%emt 0:02:15]} f5 {[%emt 0:08:05]} 18. Rad1 {[%emt 0:06:04]} h6 {[%emt 0:05:17]} 19. Rfe1 {[%emt 0:12:30]} Rad8 {[%emt 0:08:27]} 20. Nh2 {[%emt 0:03:13]} Qb7 1/2-1/2

[Event "POL-chT 2 Liga 2019"]
[Site "Poronin"]
[Date "2019.09.12"]
[Round "6.2"]
[White "Marszalek, Maciej"]
[Black "Kozak, Antoni"]
[Result "1/2-1/2"]
[ECO "A40"]
[WhiteElo "2301"]
[BlackElo "2341"]
[Annotator "NA"]
[PlyCount "40"]
[EventDate "2019.09.07"]
[EventType "team-tourn"]
[EventCountry "POL"]
[SourceTitle "playchess.com"]
[Source "ChessBase"]
[SourceQuality "1"]
[TimeControl "40/5400+30:1800+30"]

1. d4 {[%emt 0:00:00]} e6 {[%emt 0:00:00]} 2. c4 {[%emt 0:00:06]} b6 {[%emt 0:00:00]} 3. Nf3 {[%emt 0:00:31]} Bb7 {[%emt 0:00:00]} 4. g3 {[%emt 0:00:36]} Bb4+ {[%emt 0:03:11]} 5. Bd2 {[%emt 0:01:22]} Bxd2+ {[%emt 0:06:29]} 6. Qxd2 {[%emt 0:00:40]} f5 {[%emt 0:04:00]} 7. Bg2 {[%emt 0:03:14]} Nf6 {[%emt 0:00:07]} 8. O-O {[%emt 0:00:21]} O-O {[%emt 0:14:59]} 9. Nc3 {[%emt 0:00:19]} Ne4 {[%emt 0:00:59]} 10. Qc2 {[%emt 0:00:25]} Nxc3 {[%emt 0:00:55]} 11. Qxc3 {[%emt 0:00:05]} d6 {[%emt 0:04:20]} 12. Rfd1 {[%emt 0:09:00]} Qe7 {[%emt 0:09:29]} 13. c5 {[%emt 0:08:32]} Be4 {[%emt 0:00:41]} 14. cxd6 {[%emt 0:00:55]} cxd6 {[%emt 0:00:05]} 15. Qa3 {[%emt 0:00:20]} Nd7 {[%emt 0:03:59]} 16. Rac1 {[%emt 0:01:25]} Nf6 {[%emt 0:00:23]} 17. Ne1 {[%emt 0:14:44]} Rac8 {[%emt 0:06:59]} 18. Qa6 {[%emt 0:01:58]} Qd7 {[%emt 0:01:01]} 19. Nd3 {[%emt 0:06:28]} Bxg2 {[%emt 0:04:07]} 20. Kxg2 {[%emt 0:00:10]} Nd5 {[%emt 0:00:02]} 1/2-1/2